bitfinex-derivatives/quotes_SOLF0:USTF0_20241211
["timestamp","ask_amount","ask_price","bid_price","bid_amount"]
[1733889574863,10.99203101,219.39,219.23,10.99203101]
[1733889575067,10.99203101,219.36,219.24,2.38]
[1733889575267,12.59961381,219.35,219.24,2.38]
[1733889575669,2.2789,219.33,219.24,2.38]
[1733889576673,2.2789,219.33,219.28,2.2793]
[1733889576872,2.2789,219.33,219.29,2.38]
[1733889581170,1.3917,219.38,219.29,2.38]
[1733889582075,2.2785,219.37,219.33,2.2788]
[1733889582376,12.44583101,219.39,219.29,2.38]
[1733889582673,2.2783,219.38,219.33,2.2787]
[1733889582874,2.2783,219.38,219.34,2.38]
[1733889583171,1.4538,219.39,219.34,2.38]
[1733889583375,1.3657,219.44,219.34,2.38]
[1733889583376,12.35773101,219.44,219.34,2.38]
[1733889583875,2.278,219.41,219.34,2.38]
[1733889585676,2.278,219.41,219.36,2.2785]
[1733889586373,10.99203101,219.44,219.34,2.38]
[1733889587166,10.99203101,219.47,219.34,2.38]
[1733889587575,12.57092658,219.46,219.34,2.38]
[1733889587776,10.99203101,219.47,219.34,2.38]
[1733889587972,2.2777,219.45,219.39,2.2781]
[1733889588176,2.2777,219.45,219.34,2.38]
[1733889588177,10.99203101,219.47,219.4,2.38]
[1733889588374,13.81963101,219.5,219.4,2.38]
[1733889588582,10.99203101,219.53,219.41,10.99203101]
[1733889588781,12.5635544,219.52,219.41,10.99203101]
[1733889588972,10.99203101,219.55,219.41,10.99203101]
[1733889589176,12.56310002,219.54,219.41,12.39573101]
[1733889589377,10.99203101,219.55,219.41,15.08783101]
[1733889589573,2.2767,219.53,219.41,15.08783101]
[1733889590280,2.2767,219.53,219.42,2.38]
[1733889590472,2.2767,219.53,219.44,10.99203101]
[1733889591673,2.8025,219.59,219.44,10.99203101]
[1733889591874,12.53268162,219.58,219.44,10.99203101]
[1733889592176,2.2764,219.57,219.5,2.277]
[1733889592378,2.2764,219.57,219.51,2.38]
[1733889592577,13.79453101,219.59,219.51,2.38]
[1733889593487,2.2765,219.56,219.51,4.6569]
[1733889596377,2.2765,219.56,219.51,2.2769]
[1733889596676,10.99203101,219.56,219.51,2.38]
[1733889596986,2.2766,219.55,219.51,2.38]
[1733889598273,2.2769,219.52,219.51,2.38]
[1733889598881,10.99203101,219.56,219.51,2.38]
[1733889599080,2.2766,219.55,219.51,2.38]
[1733889599784,2.2767,219.54,219.51,2.38]
[1733889600176,10.99203101,219.56,219.52,2.2768]
[1733889600377,13.79453101,219.59,219.52,2.2768]
[1733889600574,13.79453101,219.59,219.51,2.38]
[1733889600776,2.2765,219.56,219.51,4.6569]
[1733889601082,13.79453101,219.59,219.51,4.6569]
[1733889601083,12.39973101,219.59,219.51,2.38]
[1733889601277,10.99203101,219.59,219.51,2.38]
[1733889601480,2.2762,219.58,219.51,2.38]
[1733889601982,2.2763,219.57,219.53,2.2767]
[1733889602175,2.2763,219.57,219.51,2.38]
[1733889602176,1.4703,219.66,219.51,2.38]
[1733889602375,10.99203101,219.63,219.51,2.38]
[1733889602580,10.99203101,219.63,219.56,2.2764]
[1733889602775,12.49280233,219.62,219.57,2.38]
[1733889602979,12.46233101,219.66,219.57,2.38]
[1733889603180,12.49241174,219.65,219.57,2.38]
[1733889603383,10.99203101,219.69,219.57,2.38]
[1733889603684,2.2753,219.67,219.57,2.38]
[1733889603889,12.48687227,219.68,219.57,2.38]
[1733889604185,1.4025,219.72,219.59,10.99203101]
[1733889604387,12.48516875,219.71,219.63,10.99203101]
[1733889604686,1.4025,219.72,219.6,12.42493101]
[1733889604881,1.4025,219.72,219.64,2.2756]
[1733889605181,10.99203101,219.67,219.61,2.38]
[1733889605383,2.2761,219.59,219.56,2.38]
[1733889605781,10.99203101,219.64,219.56,2.38]
[1733889607083,10.99203101,219.61,219.56,2.38]
[1733889607287,10.99203101,219.61,219.52,2.2768]
[1733889607483,10.99203101,219.61,219.53,2.38]
[1733889607686,10.99203101,219.61,219.46,10.99203101]
[1733889607880,10.99203101,219.58,219.48,2.2773]
[1733889608082,10.99203101,219.55,219.46,5.51080577]
[1733889608277,10.99203101,219.55,219.47,2.38]
[1733889609079,10.99203101,219.55,219.46,5.51080577]
[1733889609283,10.99203101,219.55,219.46,7.89080577]
[1733889609688,2.277,219.52,219.47,2.2774]
[1733889610188,2.2767,219.54,219.49,2.2772]
[1733889610787,2.2768,219.53,219.47,2.2773]
[1733889611287,2.2768,219.53,219.48,2.2772]
[1733889611685,10.99203101,219.55,219.48,2.2772]
[1733889611882,1.3889,219.57,219.46,18.88283678]
[1733889612890,3.6652,219.57,219.51,2.2769]
[1733889613087,3.6652,219.57,219.51,4.6569]
[1733889613386,1.3889,219.57,219.51,2.38]
[1733889613589,2.2766,219.55,219.51,2.38]
[1733889614390,1.3889,219.57,219.52,2.2768]
[1733889614791,2.38,219.66,219.52,10.99203101]
[1733889614993,3.6809,219.63,219.57,2.2763]
[1733889615288,1.4052,219.63,219.57,2.38]
[1733889615797,2.276,219.61,219.57,2.38]
[1733889616489,1.4052,219.63,219.57,2.38]
[1733889617193,12.39723101,219.63,219.47,2.8043]
[1733889617385,10.99203101,219.6,219.48,2.38]
[1733889617590,12.50717298,219.59,219.48,2.38]
[1733889617790,10.99203101,219.6,219.49,2.2772]
[1733889618092,1.3644,219.58,219.48,2.38]
[1733889618795,2.2766,219.55,219.5,2.277]
[1733889619385,2.2767,219.54,219.49,2.2772]
[1733889619787,1.3644,219.58,219.48,2.38]
[1733889620594,12.39723101,219.63,219.48,2.38]
[1733889620801,12.39723101,219.63,219.5,10.99203101]
[1733889621592,2.2761,219.6,219.54,2.2766]
[1733889621796,12.39723101,219.63,219.54,2.38]
[1733889621995,12.52163315,219.62,219.54,2.38]
[1733889622194,12.39723101,219.63,219.47,1.4378]
[1733889622394,10.99203101,219.6,219.48,2.38]
[1733889622803,2.2764,219.56,219.51,2.2769]
[1733889623401,2.2763,219.58,219.52,2.2768]
[1733889623805,10.99203101,219.6,219.52,2.2768]
[1733889624198,12.39723101,219.63,219.53,2.38]
[1733889624397,12.54493422,219.62,219.53,2.38]
[1733889624601,2.276,219.6,219.53,4.6567]
[1733889624801,12.39723101,219.63,219.53,4.6567]
[1733889625001,12.54571075,219.62,219.53,2.38]
[1733889625203,2.2762,219.59,219.54,2.2766]
[1733889625712,2.2762,219.58,219.54,2.2766]
[1733889626812,2.2761,219.6,219.55,2.2765]
[1733889627018,12.39723101,219.63,219.53,2.38]
[1733889628006,1.4299,219.65,219.54,10.99203101]
[1733889628204,2.2752,219.68,219.63,2.2757]
[1733889628407,1.3681,219.74,219.62,2.38]
[1733889628408,12.57341736,219.67,219.62,2.38]
[1733889628609,10.99203101,219.72,219.62,2.38]
[1733889628811,12.57214487,219.71,219.62,2.38]
[1733889629015,12.57214487,219.7,219.62,2.38]
[1733889629217,2.2751,219.69,219.64,2.2755]
[1733889629410,10.99203101,219.72,219.62,2.38]
[1733889629610,12.57464929,219.71,219.62,2.38]
[1733889629811,2.2752,219.68,219.63,2.2757]
[1733889630013,10.99203101,219.72,219.62,2.38]
[1733889630217,12.57425471,219.71,219.62,2.38]
[1733889630518,1.3681,219.74,219.62,2.38]
[1733889630713,12.57657641,219.73,219.62,2.38]
[1733889630909,12.57657641,219.72,219.62,2.38]
[1733889631112,12.57657641,219.71,219.62,2.38]
[1733889631414,10.99203101,219.72,219.6,10.99203101]
[1733889631620,10.99203101,219.69,219.61,2.38]
[1733889631914,12.57978193,219.68,219.61,2.38]
[1733889632210,10.99203101,219.66,219.51,12.33693101]
[1733889632417,10.99203101,219.66,219.55,2.2764]
[1733889632418,2.276,219.6,219.55,2.2764]
[1733889633721,2.276,219.6,219.54,7.61221925]
[1733889634314,12.5985014,219.59,219.54,2.38]
[1733889634527,12.60097698,219.58,219.54,2.38]
[1733889634814,10.99203101,219.6,219.54,2.38]
[1733889634815,2.2764,219.57,219.54,2.38]
[1733889635016,10.99203101,219.57,219.5,2.38]
[1733889635718,2.2767,219.54,219.5,2.38]
[1733889635923,10.99203101,219.57,219.46,1.4352]
[1733889636115,12.60381679,219.56,219.47,2.38]
[1733889636320,12.60381679,219.55,219.49,2.2771]
[1733889636718,1.3565,219.58,219.47,2.38]
[1733889637416,12.60573582,219.57,219.47,2.38]
[1733889637617,1.3565,219.58,219.47,2.38]
[1733889637817,12.60574607,219.57,219.47,2.38]
[1733889638116,1.3565,219.58,219.47,2.38]
[1733889638321,12.60574609,219.57,219.47,2.38]
[1733889638517,3.6328,219.58,219.51,2.2769]
[1733889638722,3.6328,219.58,219.47,2.38]
[1733889639120,12.60598835,219.57,219.47,2.38]
[1733889639422,1.3565,219.58,219.47,2.38]
[1733889639821,1.3565,219.58,219.5,2.277]
[1733889639822,2.2763,219.58,219.5,2.277]
[1733889640023,2.2763,219.58,219.47,2.38]
[1733889640623,12.33243101,219.59,219.47,2.38]
[1733889640826,2.2764,219.57,219.47,2.38]
[1733889642222,2.2764,219.57,219.51,2.2769]
[1733889642426,2.2764,219.57,219.52,2.38]
[1733889643026,12.33243101,219.59,219.52,2.38]
[1733889643223,2.38,219.63,219.52,2.38]
[1733889643428,12.60941489,219.62,219.52,2.38]
[1733889643728,12.60941489,219.61,219.52,2.38]
[1733889643929,2.2759,219.61,219.52,2.38]
[1733889644630,2.2759,219.61,219.55,2.2764]
[1733889645026,2.2758,219.63,219.52,2.38]
[1733889645227,12.60995136,219.62,219.52,2.38]
[1733889645423,12.39433101,219.65,219.52,2.38]
[1733889645627,12.61024161,219.64,219.53,1.4455]
[1733889645832,12.61024161,219.63,219.54,10.99203101]
[1733889646029,2.38,219.71,219.57,10.99203101]
[1733889646030,10.99203101,219.71,219.57,10.99203101]
[1733889646331,20.26091982,219.7,219.58,2.38]
[1733889646523,10.99203101,219.71,219.58,2.38]
[1733889646724,12.60365283,219.7,219.58,2.38]
[1733889647732,14.87875283,219.7,219.64,2.2755]
[1733889647929,2.2751,219.7,219.64,4.6555]
[1733889648741,2.2751,219.7,219.64,2.38]
[1733889648929,2.2751,219.7,219.65,2.2755]
[1733889649131,13.26693101,219.71,219.65,2.2755]
[1733889649325,10.99203101,219.71,219.64,2.38]
[1733889649730,12.59278348,219.7,219.64,2.38]
[1733889649923,13.26703101,219.71,219.64,2.38]
[1733889650124,10.99203101,219.71,219.64,2.38]
[1733889650431,13.72093101,219.74,219.64,2.38]
[1733889650632,1.3839,219.74,219.64,2.38]
[1733889650825,2.2743,219.77,219.65,1.3729]
[1733889651031,20.63422576,219.76,219.65,1.3729]
[1733889651231,10.99203101,219.78,219.66,10.99203101]
[1733889651529,1.3605,219.8,219.66,10.99203101]
[1733889651730,10.99203101,219.79,219.64,2.38]
[1733889651931,10.99203101,219.79,219.65,1.3729]
[1733889652329,10.99203101,219.76,219.66,2.38]
[1733889652835,12.57241298,219.75,219.66,2.38]
[1733889653033,2.2746,219.75,219.68,2.2752]
[1733889654931,2.2746,219.74,219.68,2.2752]
[1733889655334,10.99203101,219.76,219.66,2.38]
[1733889656233,12.56647592,219.75,219.66,2.38]
[1733889656432,10.99203101,219.76,219.66,2.38]
[1733889656636,2.2745,219.75,219.69,2.2751]
[1733889657638,13.26643101,219.76,219.69,2.2751]
[1733889657836,10.99203101,219.76,219.66,2.38]
[1733889658142,10.99203101,219.7,219.57,13.83183101]
[1733889658337,2.2753,219.67,219.61,2.2758]
[1733889658535,13.26733101,219.67,219.62,2.38]
[1733889659232,1.4031,219.69,219.62,2.38]
[1733889659735,2.2756,219.65,219.54,10.99203101]
[1733889659936,2.2756,219.65,219.56,2.38]
[1733889660134,10.99203101,219.68,219.56,2.38]
[1733889660432,10.99203101,219.68,219.54,10.99203101]
[1733889660639,10.99203101,219.65,219.56,2.38]
[1733889661035,10.99203101,219.65,219.56,7.79376766]
[1733889661434,5.59189526,219.78,219.63,2.2757]
[1733889661435,2.2751,219.7,219.63,2.2757]
[1733889661635,10.99203101,219.71,219.64,2.38]
[1733889662040,1.3414,219.75,219.64,4.6556]
[1733889662241,10.99203101,219.71,219.64,2.38]
[1733889663036,2.2754,219.66,219.6,2.276]
[1733889663341,10.99203101,219.65,219.5,13.91273101]
[1733889663536,2.2758,219.62,219.55,2.2765]
[1733889663741,10.99203101,219.62,219.56,2.38]
[1733889664241,2.276,219.61,219.56,2.38]
[1733889664631,10.99203101,219.62,219.56,2.38]
[1733889664632,13.26783101,219.62,219.56,2.38]
[1733889664833,1.4321,219.64,219.56,2.38]
[1733889665241,2.2758,219.63,219.57,2.2763]
[1733889665445,1.4321,219.64,219.56,2.38]
[1733889666134,1.3603,219.66,219.56,2.38]
[1733889666334,3.6357,219.66,219.59,2.2761]
[1733889666536,3.6357,219.66,219.56,2.38]
[1733889667341,3.6357,219.66,219.59,2.2761]
[1733889667545,3.6357,219.66,219.56,2.38]
[1733889667739,13.26733101,219.68,219.56,13.37203101]
[1733889667941,12.43353101,219.71,219.64,2.2756]
[1733889668133,12.57249067,219.7,219.65,2.38]
[1733889668338,13.74773101,219.77,219.65,2.38]
[1733889668540,20.60694152,219.76,219.7,2.275]
[1733889668739,12.57115408,219.75,219.7,2.275]
[1733889668940,13.74773101,219.77,219.7,2.275]
[1733889669141,12.57103262,219.76,219.7,2.275]
[1733889669341,12.57103262,219.75,219.7,2.275]
[1733889669644,13.74773101,219.77,219.71,2.2749]
[1733889670141,13.26603101,219.8,219.74,2.2745]
[1733889670342,12.56710193,219.79,219.7,2.38]
[1733889670642,13.26603101,219.8,219.7,2.38]
[1733889670844,12.566418,219.79,219.7,2.38]
[1733889671143,13.26603101,219.8,219.7,2.38]
[1733889671733,10.99203101,219.77,219.64,2.7712]
[1733889671933,10.99203101,219.77,219.65,2.38]
[1733889672134,2.2745,219.76,219.68,2.2751]
[1733889672335,10.99203101,219.77,219.65,2.38]
[1733889672640,13.93362916,219.76,219.65,2.38]
[1733889672836,10.99203101,219.74,219.65,4.6554]
[1733889673144,10.99203101,219.74,219.65,10.19933573]
[1733889673646,2.2749,219.71,219.65,10.19933573]
[1733889674241,2.2749,219.71,219.65,7.92393573]
[1733889674442,2.2749,219.71,219.66,2.2754]
[1733889675143,2.2749,219.71,219.65,10.19943573]
[1733889676245,2.2749,219.71,219.66,2.4]
[1733889676446,20.22965162,219.76,219.66,2.4]
[1733889676642,1.351,219.79,219.66,2.4]
[1733889676949,2.2741,219.79,219.73,2.2746]
[1733889677148,0.18627,219.82,219.74,2.4]
[1733889677440,0.18627,219.82,219.78,2.2742]
[1733889677644,0.18627,219.82,219.79,2.4]
[1733889677838,0.18627,219.82,219.8,2.4]
[1733889678039,0.18627,219.82,219.81,2.2738]
[1733889678446,17.50985162,219.91,219.8,2.4]
[1733889678638,2.2733,219.87,219.81,2.2738]
[1733889678947,12.54730737,219.86,219.8,2.4]
[1733889679141,17.50985162,219.91,219.8,2.4]
[1733889679348,20.55469524,219.9,219.8,2.4]
[1733889679543,20.55469524,219.89,219.8,2.4]
[1733889679738,12.54094683,219.88,219.8,2.4]
[1733889679943,12.54094683,219.87,219.8,2.4]
[1733889680145,20.55543562,219.86,219.8,2.4]
[1733889680443,2.2736,219.83,219.8,2.4]
[1733889680643,17.50985162,219.87,219.8,2.4]
[1733889680844,12.54112566,219.86,219.8,2.4]
[1733889681149,2.2737,219.83,219.8,2.4]
[1733889681947,2.2738,219.82,219.78,2.4]
[1733889682146,17.50985162,219.87,219.78,2.4]
[1733889682346,20.55863522,219.86,219.78,2.4]
[1733889682648,20.55863522,219.85,219.78,2.4]
[1733889682845,12.54356124,219.84,219.78,2.4]
[1733889683048,12.54356124,219.83,219.78,2.4]
[1733889683245,12.54356124,219.82,219.78,2.4]
[1733889683451,2.2739,219.81,219.78,2.4]
[1733889684447,2.274,219.8,219.78,2.4]
[1733889685546,2.7195,219.85,219.78,2.4]
[1733889685547,2.2738,219.82,219.78,2.4]
[1733889685950,2.7195,219.85,219.78,4.6741]
[1733889686149,12.55103546,219.84,219.78,2.4]
[1733889686350,17.50985162,219.88,219.78,2.4]
[1733889686547,20.57394805,219.87,219.78,2.4]
[1733889686747,20.27975162,219.92,219.78,2.4]
[1733889686948,2.2732,219.88,219.82,2.2737]
[1733889687147,20.27975162,219.92,219.82,2.2737]
[1733889687450,29.11282825,219.91,219.82,2.4]
[1733889687653,20.5737804,219.9,219.82,2.4]
[1733889687851,20.5737804,219.89,219.82,2.4]
[1733889688050,20.5737804,219.88,219.82,2.4]
[1733889688250,2.2736,219.84,219.82,2.4]
[1733889689048,2.2731,219.89,219.85,2.2734]
[1733889689357,12.55407465,219.88,219.82,2.4]
[1733889689550,12.55407465,219.87,219.82,2.4]
[1733889689850,20.27975162,219.92,219.82,2.4]
[1733889690150,2.2731,219.89,219.83,2.2736]
[1733889690451,12.55458364,219.88,219.82,2.4]
[1733889690644,2.7699,219.92,219.82,2.4]
[1733889690844,2.2732,219.88,219.82,2.4]
[1733889691549,0.23142,219.93,219.82,2.4]
[1733889691746,20.568342,219.92,219.82,2.4]
[1733889692053,12.55002541,219.91,219.82,2.4]
[1733889692254,0.23142,219.93,219.82,2.4]
[1733889692448,2.273,219.89,219.84,2.2735]
[1733889692648,0.23142,219.93,219.82,2.4]
[1733889692846,20.55967879,219.92,219.82,2.4]
[1733889693053,12.54470454,219.91,219.82,2.4]
[1733889693357,0.23142,219.93,219.82,2.4]
[1733889693753,0.23142,219.93,219.89,2.273]
[1733889694058,0.23142,219.93,219.9,2.4]
[1733889694257,0.23142,219.93,219.91,2.2728]
[1733889695248,0.23142,219.93,219.9,2.4]
[1733889695249,17.50985162,220.11,219.9,2.4]
[1733889695455,12.52292212,219.99,219.9,2.4]
[1733889695654,5.35635439,220.02,219.9,2.4]
[1733889695655,12.52292212,219.98,219.9,2.4]
[1733889695954,12.52292212,219.97,219.9,2.4]
[1733889696150,12.52292212,219.96,219.9,2.4]
[1733889696355,17.50985162,220.0,219.9,4.6729]
[1733889696557,12.51679065,219.99,219.9,2.4]
[1733889696755,12.51679065,219.98,219.9,2.4]
[1733889697158,10.92271414,219.95,219.9,2.4]
[1733889697763,10.92271414,219.92,219.89,2.4]
[1733889697957,10.92271414,219.92,219.85,5.41748254]
[1733889698264,10.92271414,219.92,219.87,2.4]
[1733889698961,2.4,219.99,219.87,2.4]
[1733889698962,10.92271414,219.93,219.87,2.4]
[1733889699561,2.273,219.9,219.85,4.6734]
[1733889700755,10.92271414,219.93,219.85,2.4]
[1733889701066,2.273,219.89,219.85,2.4]
[1733889701563,10.92271414,219.9,219.83,2.4]
[1733889702164,2.2734,219.85,219.83,2.4]
[1733889702867,10.92271414,219.9,219.83,2.4]
[1733889703465,2.2731,219.89,219.84,2.2735]
[1733889703965,10.92271414,219.9,219.83,2.4]
[1733889704569,2.2731,219.88,219.83,4.6736]
[1733889704862,10.92271414,219.9,219.83,4.6736]
[1733889705071,10.92271414,219.9,219.83,2.4]
[1733889705261,2.273,219.89,219.84,2.2735]
[1733889705570,10.92271414,219.9,219.83,2.4]
[1733889706158,1.4504,219.92,219.83,2.4]
[1733889706968,3.7232,219.92,219.86,2.2732]
[1733889707569,2.2728,219.91,219.86,2.2732]
[1733889707865,1.4504,219.92,219.86,2.2732]
[1733889708565,2.2729,219.9,219.86,2.2732]
[1733889709468,2.2729,219.9,219.83,2.4]
[1733889709669,2.273,219.89,219.85,2.2734]
[1733889709869,1.4504,219.92,219.79,10.92271414]
[1733889710067,1.4504,219.92,219.81,2.2738]
[1733889710373,12.52437868,219.91,219.8,2.44]
[1733889710571,1.4504,219.92,219.8,2.44]
[1733889710873,12.53411543,219.91,219.8,2.44]
[1733889711165,1.4504,219.92,219.8,2.44]
[1733889711368,12.5413678,219.91,219.8,2.44]
[1733889711568,1.4504,219.92,219.8,2.44]
[1733889711768,12.54136734,219.91,219.8,2.44]
[1733889712070,1.4504,219.92,219.8,2.44]
[1733889712271,12.54919006,219.91,219.8,2.44]
[1733889712464,1.4504,219.92,219.8,2.44]
[1733889712465,12.54919006,219.9,219.8,2.44]
[1733889712668,2.2732,219.88,219.83,2.2736]
[1733889712868,10.92271414,219.9,219.77,47.32]
[1733889713165,12.54959794,219.89,219.78,2.44]
[1733889713371,12.54959794,219.88,219.78,2.44]
[1733889713567,10.92271414,219.9,219.78,2.44]
[1733889713867,10.92271414,219.87,219.76,2.7367]
[1733889714071,12.55495764,219.86,219.73,10.92271414]
[1733889714270,12.55495764,219.86,219.75,2.44]
[1733889714672,2.2737,219.83,219.76,2.2744]
[1733889714872,10.92271414,219.87,219.76,2.2744]
[1733889715169,12.55966982,219.86,219.76,2.2744]
[1733889715376,12.55966982,219.85,219.76,2.2744]
[1733889715570,12.55966982,219.84,219.76,2.2744]
[1733889715870,2.2743,219.77,219.72,2.2747]
[1733889716072,2.2743,219.77,219.73,2.44]
[1733889716464,2.2743,219.77,219.68,4.1927]
[1733889716865,2.2743,219.77,219.69,2.44]
[1733889717070,2.2743,219.77,219.73,2.2747]
[1733889717271,10.92271414,219.81,219.69,2.44]
[1733889717470,2.2744,219.76,219.69,2.44]
[1733889717671,10.92271414,219.81,219.68,4.1927]
[1733889717873,2.2744,219.76,219.69,2.44]
[1733889719076,2.2745,219.75,219.7,4.715]
[1733889719573,10.92271414,219.81,219.7,2.44]
[1733889720075,10.92271414,219.78,219.71,2.44]
[1733889720278,2.2746,219.75,219.69,2.275]
[1733889720574,2.2746,219.75,219.7,2.44]
[1733889720875,10.92271414,219.78,219.69,2.44]
[1733889720876,2.2747,219.73,219.69,2.44]
[1733889721274,10.92271414,219.78,219.69,2.44]
[1733889721575,12.589043,219.77,219.69,2.44]
[1733889721769,10.92271414,219.78,219.69,2.44]
[1733889722378,4.5439,220.0,219.74,10.92271414]
[1733889722571,10.92271414,219.9,219.75,1.4545]
[1733889722873,2.2739,219.81,219.76,2.44]
[1733889723074,2.2739,219.81,219.77,2.44]
[1733889723270,10.92271414,219.87,219.77,2.44]
[1733889723271,2.2738,219.82,219.77,2.44]
[1733889723664,2.2738,219.82,219.71,10.92271414]
[1733889723665,10.92271414,219.87,219.71,10.92271414]
[1733889723873,2.2741,219.79,219.72,2.2747]
[1733889724077,10.92271414,219.84,219.73,2.44]
[1733889724278,22.02039568,219.83,219.73,2.44]
[1733889724478,2.2741,219.8,219.73,2.44]
[1733889725572,2.2741,219.8,219.74,2.2745]
[1733889725875,10.92271414,219.78,219.68,2.44]
[1733889726076,12.58568147,219.77,219.68,2.44]
[1733889726276,12.58568147,219.77,219.62,10.92271414]
[1733889726477,2.2746,219.74,219.69,2.2751]
[1733889726676,3.8591,219.78,219.62,10.92271414]
[1733889726978,10.92271414,219.76,219.65,5.37360939]
[1733889727278,13.19721414,219.76,219.65,5.37360939]
[1733889727775,1.4191,219.78,219.72,2.2748]
[1733889728375,2.2743,219.77,219.7,2.44]
[1733889728773,1.4191,219.78,219.74,2.2745]
[1733889728976,1.4191,219.78,219.7,2.44]
[1733889729175,1.4028,219.79,219.7,2.44]
[1733889729380,1.3923,219.83,219.71,1.3756]
[1733889729978,2.2739,219.81,219.75,2.2744]
[1733889731481,2.2739,219.81,219.76,2.2743]
[1733889733582,10.92271414,219.87,219.73,2.44]
[1733889733789,12.57637016,219.86,219.77,10.92271414]
[1733889734078,13.19561414,219.9,219.85,2.2734]
[1733889734278,13.19561414,219.9,219.77,10.92271414]
[1733889734279,12.57360435,219.89,219.84,2.44]
[1733889734584,10.92271414,219.9,219.84,2.44]
[1733889735781,2.2732,219.88,219.84,2.44]
[1733889735977,10.92271414,219.87,219.84,2.44]
[1733889736577,10.92271414,219.9,219.84,2.44]
[1733889736984,2.2731,219.88,219.84,4.7135]
[1733889737184,10.92271414,219.9,219.84,2.44]
[1733889737381,1.4406,219.96,219.84,2.44]
[1733889737685,22.87623951,219.95,219.84,2.44]
[1733889737875,10.92271414,219.92,219.84,2.44]
[1733889738276,2.27334727,219.94,219.87,10.92271414]
[1733889738480,2.27334727,219.94,219.88,1.4162]
[1733889738684,2.27334727,219.94,219.89,2.54]
[1733889739281,2.27334727,219.94,219.88,1.4162]
[1733889739684,2.27334727,219.94,219.89,2.54]
[1733889740576,2.27334727,219.94,219.9,2.2729]
[1733889741889,2.27334727,219.94,219.92,2.2727]
[1733889742387,10.92271414,219.99,219.92,2.2727]
[1733889742782,10.92271414,219.99,219.89,8.05845315]
[1733889742981,10.92271414,219.99,219.93,2.2726]
[1733889743186,10.92271414,219.99,219.94,2.54]
[1733889743387,2.2721,219.98,219.94,2.54]
[1733889743983,2.2724,219.96,219.89,7.79135315]
[1733889744189,10.92271414,219.99,219.9,2.54]
[1733889744387,12.55107831,219.98,219.9,2.54]
[1733889744583,10.92271414,219.99,219.9,2.54]
[1733889744985,13.19501414,219.96,219.88,2.273]
[1733889745186,10.92271414,219.96,219.89,2.54]
[1733889745587,2.2726,219.93,219.89,2.54]
[1733889745787,10.92271414,219.93,219.89,2.54]
[1733889746992,2.2727,219.92,219.89,2.54]
[1733889747392,2.2727,219.92,219.87,2.2732]
[1733889747393,10.92271414,219.9,219.85,2.54]
[1733889747695,10.92271414,219.9,219.83,2.54]
[1733889748388,2.2732,219.87,219.83,2.54]
[1733889748693,10.92271414,219.87,219.82,2.54]
[1733889749290,2.2733,219.86,219.82,2.54]
[1733889749686,2.2733,219.86,219.79,1.4715]
[1733889749886,1.4182,219.89,219.8,2.54]
[1733889750290,10.92271414,219.9,219.83,2.2736]
[1733889750591,2.8974,219.99,219.8,2.54]
[1733889750592,10.92271414,219.95,219.82,10.92271414]
[1733889751391,2.272,219.99,219.92,2.2726]
[1733889751591,10.92271414,219.99,219.93,2.54]
[1733889752292,2.2722,219.98,219.93,2.54]
[1733889752494,10.92271414,219.99,219.93,2.54]
[1733889753488,13.19481414,219.99,219.93,2.54]
[1733889754188,2.2722,219.97,219.93,2.54]
[1733889754396,10.92271414,219.99,219.93,2.54]
[1733889754898,10.92271414,219.96,219.82,10.92271414]